bitfinex-derivatives/quotes_ETHF0:USTF0_20241026
["timestamp","ask_amount","ask_price","bid_price","bid_amount"]
[1729967037929,0.4933,2482.0,2481.9,5.73985856]
[1729967038334,0.9482,2482.3,2481.9,5.73985856]
[1729967038538,0.9482,2482.3,2482.2,1.71100856]
[1729967038930,0.9482,2482.3,2482.2,1.30767856]
[1729967039135,1.35151,2482.3,2482.2,1.30767856]
[1729967040539,0.9482,2482.3,2482.2,1.30767856]
[1729967040733,0.9482,2482.3,2482.2,1.71100856]
[1729967041339,1.35151,2482.3,2482.2,1.30767856]
[1729967041846,2.25587856,2482.3,2482.1,1.30767856]
[1729967042142,0.40333,2482.2,2482.1,1.30767856]
[1729967042339,2.65919856,2482.3,2482.1,1.71100856]
[1729967044950,1.35152,2482.3,2482.1,1.71100856]
[1729967046045,0.40333,2482.2,2482.1,1.30767856]
[1729967046245,0.9482,2482.3,2482.1,1.30767856]
[1729967046441,1.35152,2482.3,2482.1,1.71101856]
[1729967047142,0.9482,2482.3,2482.1,1.71101856]
[1729967047337,0.40333,2482.2,2482.1,1.30767856]
[1729967047641,1.35152,2482.3,2482.1,1.71100856]
[1729967047847,0.9482,2482.3,2482.2,0.40333]
[1729967049946,0.9482,2482.3,2482.2,1.71100856]
[1729967050847,1.35151,2482.3,2482.2,1.30767856]
[1729967051147,1.35151,2482.3,2482.1,1.30767856]
[1729967051148,0.40333,2482.2,2482.1,1.30767856]
[1729967051943,0.40335,2482.1,2481.9,0.40336]
[1729967052145,0.85915,2482.1,2482.0,1.30767856]
[1729967053046,0.4558,2482.1,2482.0,1.30767856]
[1729967053252,0.4558,2482.1,2482.0,1.71103856]
[1729967055454,0.9482,2482.3,2482.0,6.64415712]
[1729967055752,0.9482,2482.3,2482.2,1.71100856]
[1729967055952,0.9482,2482.3,2482.2,5.73980856]
[1729967057251,0.9482,2482.3,2481.8,1.05351832]
[1729967057453,0.40333,2482.2,2482.0,0.40335]
[1729967057650,0.40333,2482.2,2482.1,1.30767856]
[1729967058452,1.35151,2482.3,2482.2,0.40333]
[1729967058755,1.35151,2482.3,2482.2,1.30767856]
[1729967059447,1.35151,2482.3,2481.7,5.26982832]
[1729967059448,0.40335,2482.1,2482.0,1.71102856]
[1729967060456,0.40333,2482.2,2482.1,0.40333]
[1729967060646,0.40333,2482.2,2482.1,1.71100856]
[1729967062250,0.40333,2482.2,2482.1,1.30767856]
[1729967062444,0.40333,2482.2,2482.1,1.71101856]
[1729967064547,9.55262856,2482.2,2481.7,3.2078]
[1729967064748,0.40339,2481.8,2481.7,3.6112]
[1729967065151,0.40338,2481.9,2481.7,4.51547856]
[1729967065353,0.40337,2482.0,2481.8,1.71106856]
[1729967065661,0.40337,2482.0,2481.9,1.30767856]
[1729967066355,0.40336,2482.1,2481.9,1.71104856]
[1729967066650,0.40336,2482.1,2482.0,1.30767856]
[1729967067654,1.33866,2482.1,2482.0,1.30767856]
[1729967068658,1.33866,2482.1,2482.0,1.71103856]
[1729967069048,0.9353,2482.1,2482.0,1.71103856]
[1729967069458,1.33864,2482.1,2482.0,1.71103856]
[1729967069754,0.856,2482.3,2482.2,0.40333]
[1729967070049,1.25931,2482.3,2482.2,1.71100856]
[1729967070251,0.856,2482.3,2481.7,3.6731]
[1729967070450,0.856,2482.3,2482.0,1.30767856]
[1729967070451,0.40335,2482.1,2482.0,1.30767856]
[1729967070846,0.86905,2482.1,2482.0,1.30767856]
[1729967073656,5.80217856,2482.1,2481.7,1.30767856]
[1729967073855,0.40341,2481.7,2481.6,4.91889856]
[1729967074065,2.26337856,2482.0,2481.6,4.51547856]
[1729967074066,0.4034,2481.8,2481.6,4.51547856]
[1729967074260,0.4034,2481.8,2481.7,1.30767856]
[1729967075759,0.40338,2481.9,2481.7,1.30767856]
[1729967075957,0.40338,2481.9,2481.8,1.71106856]
[1729967076158,0.40338,2481.9,2481.8,1.30767856]
[1729967076462,0.9557,2482.0,2481.9,0.40338]
[1729967076657,1.35906,2482.0,2481.9,1.71105856]
[1729967077062,0.9557,2482.0,2481.9,1.71105856]
[1729967077861,0.9557,2482.0,2481.9,1.83719042]
[1729967078560,0.40333,2482.2,2481.9,1.43381042]
[1729967078759,0.40333,2482.2,2482.1,1.71101856]
[1729967078959,3.2078,2482.5,2482.1,1.43380385]
[1729967079156,3.2078,2482.5,2482.3,1.30767856]
[1729967079157,0.4033,2482.4,2482.3,1.30767856]
[1729967079461,0.4033,2482.4,2482.2,1.71100856]
[1729967079462,0.40332,2482.3,2482.2,1.71100856]
[1729967079666,1.71099856,2482.3,2482.2,0.12611751]
[1729967079966,1.30767856,2482.3,2482.2,0.52944751]
[1729967080161,1.30767856,2482.4,2482.2,0.52943751]
[1729967080363,0.40331,2482.3,2482.2,1.71099856]
[1729967080668,0.40331,2482.3,2482.2,1.83711729]
[1729967081170,0.40331,2482.3,2482.2,1.43379729]
[1729967081370,0.40331,2482.3,2482.2,1.83712729]
[1729967083769,0.40331,2482.3,2482.2,1.43379729]
[1729967084070,0.40331,2482.3,2482.1,1.71100856]
[1729967084272,4.1433,2482.2,2482.1,1.71100856]
[1729967084467,4.1433,2482.2,2482.1,1.83713757]
[1729967084668,4.54663,2482.2,2482.1,1.71101856]
[1729967084973,4.54664,2482.2,2482.1,0.40334]
[1729967085272,4.54664,2482.2,2482.1,1.71101856]
[1729967086767,4.54664,2482.2,2482.1,1.83714876]
[1729967087962,1.33884,2482.2,2482.1,1.83714876]
[1729967088167,4.54664,2482.2,2482.1,1.83714876]
[1729967090376,3.6835,2482.2,2482.1,1.83714876]
[1729967090965,3.6835,2482.2,2482.1,1.71101856]
[1729967091677,0.4757,2482.2,2482.1,1.71101856]
[1729967092674,4.5518,2482.4,2482.3,0.40331]
[1729967092870,1.96892674,2483.0,2482.3,1.30767856]
[1729967092871,0.86309,2482.5,2482.3,1.30767856]
[1729967093075,0.86309,2482.5,2482.1,3.2078]
[1729967093076,0.86309,2482.5,2482.4,2.17166856]
[1729967093473,0.4598,2482.5,2482.4,2.17166856]
[1729967094377,0.4033,2482.4,2482.3,1.30767856]
[1729967094570,0.8919,2482.4,2482.3,1.30767856]
[1729967096678,0.4886,2482.4,2482.3,1.71098856]
[1729967096973,0.89189,2482.4,2482.3,1.71098856]
[1729967099482,0.4886,2482.4,2482.3,1.71098856]
[1729967102077,0.4598,2482.5,2482.3,1.30767856]
[1729967102277,0.4598,2482.5,2482.4,1.71096856]
[1729967103177,0.4598,2482.5,2482.4,1.83707381]
[1729967103378,0.9277,2482.7,2482.6,0.40326]
[1729967103683,3.2078,2482.8,2482.7,0.40325]
[1729967103879,3.2078,2482.8,2482.7,5.73892856]
[1729967104089,3.2078,2482.8,2482.7,6.69732856]
[1729967104376,3.2078,2482.8,2482.7,6.82341789]
[1729967105184,3.611,2483.0,2482.7,6.42016789]
[1729967105379,3.611,2483.0,2482.9,1.30767856]
[1729967106483,3.611,2483.0,2482.4,3.2078]
[1729967106484,4.51547856,2483.0,2482.4,3.2078]
[1729967106683,4.51547856,2483.0,2482.8,1.30767856]
[1729967106881,0.40321,2482.9,2482.8,1.30767856]
[1729967107587,0.40321,2482.9,2482.8,5.73890856]
[1729967108783,3.2078,2483.0,2482.8,5.33567856]
[1729967108979,3.2078,2483.0,2482.9,1.71088856]
[1729967108980,3.61101,2483.0,2482.9,1.71088856]
[1729967109178,3.61101,2483.0,2482.9,1.30767856]
[1729967110292,3.61101,2483.0,2482.9,1.71088856]
[1729967111891,0.40321,2483.0,2482.9,1.71088856]
[1729967112781,0.40321,2483.0,2482.9,1.30767856]
[1729967113492,0.40321,2483.0,2482.9,1.71088856]
[1729967115379,0.40321,2483.0,2482.9,1.30767856]
[1729967116189,0.40324,2482.8,2482.6,0.40325]
[1729967116396,0.9242,2482.7,2482.6,0.40325]
[1729967116590,0.451,2482.7,2482.6,0.40325]
[1729967117694,0.451,2482.7,2482.6,1.71092856]
[1729967119893,0.85425,2482.7,2482.6,1.71092856]
[1729967120489,0.451,2482.7,2482.6,1.71092856]
[1729967125393,0.4498,2482.8,2482.6,1.30767856]
[1729967125694,0.4732,2483.0,2482.5,0.449]
[1729967125695,0.4837,2482.9,2482.8,0.40323]
[1729967125892,0.4837,2482.9,2482.8,1.71090856]
[1729967126087,0.4837,2482.9,2482.8,5.73890856]
[1729967127695,2.16367856,2483.4,2482.8,5.73890856]
[1729967127696,13.0183472,2483.5,2482.9,1.00804]
[1729967127896,0.9345,2483.4,2483.3,0.40313]
[1729967128696,0.9345,2483.4,2483.3,1.71080856]
[1729967129095,9.8105472,2483.5,2483.4,0.40313]
[1729967129304,9.8105472,2483.5,2483.4,5.73720856]
[1729967129601,4.1356,2483.9,2483.6,0.4031]
[1729967129602,0.86889,2483.7,2483.6,0.4031]
[1729967129800,0.86889,2483.7,2483.6,1.71077856]
[1729967130593,0.86889,2483.7,2483.6,1.30767856]
[1729967131004,0.4031,2483.6,2483.5,1.30767856]
[1729967131301,0.8781,2483.6,2483.5,1.30767856]
[1729967133202,0.87811,2483.6,2483.5,1.30767856]
[1729967137901,4.5014,2483.6,2483.4,1.30767856]
[1729967138100,0.85822,2483.5,2483.4,1.30767856]
[1729967138507,0.4551,2483.5,2483.3,1.30767856]
[1729967138806,0.40313,2483.4,2483.3,1.30767856]
[1729967138999,5.33407856,2483.4,2482.8,0.89692]
[1729967139201,2.25637856,2483.3,2483.1,1.30767856]
[1729967139402,0.40316,2483.2,2483.1,1.30767856]
[1729967140507,4.43036,2483.2,2483.1,0.56307856]
[1729967142197,8.54267856,2483.2,2482.6,3.2078]
[1729967142408,8.54267856,2483.2,2482.7,1.30767856]
[1729967142409,0.40323,2482.8,2482.7,1.30767856]
[1729967142905,0.89773,2482.8,2482.7,1.30767856]
[1729967143205,0.89773,2482.8,2482.3,0.4901]
[1729967143206,4.5225,2482.8,2482.6,1.30767856]
[1729967143503,0.89773,2482.8,2482.7,1.30767856]
[1729967143708,1.35193,2482.8,2482.7,1.30767856]
[1729967145303,5.37993,2482.8,2482.7,1.30767856]
[1729967147701,0.89773,2482.8,2482.7,1.30767856]
[1729967148900,0.4945,2482.8,2482.7,1.30767856]
[1729967149107,0.4945,2482.8,2482.7,1.71092856]
[1729967149307,0.89773,2482.8,2482.7,1.30767856]
[1729967149913,0.4945,2482.8,2482.7,1.30767856]
[1729967150314,0.89773,2482.8,2482.7,1.30767856]
[1729967152720,0.4945,2482.8,2482.7,1.71092856]
[1729967153619,0.89773,2482.8,2482.7,1.71092856]
[1729967153821,0.89773,2482.8,2482.7,1.30767856]
[1729967155419,0.89773,2482.8,2482.7,1.75587856]
[1729967158321,0.40323,2482.8,2482.7,1.75587856]
[1729967159513,0.4487,2482.9,2482.7,1.75587856]
[1729967159713,0.85192,2482.9,2482.8,1.30767856]
[1729967162323,4.87992,2482.9,2482.8,1.30767856]
[1729967166220,0.40326,2482.6,2482.5,3.2078]
[1729967166424,1.00808,2482.8,2482.6,1.30767856]
[1729967166425,0.40325,2482.7,2482.6,1.30767856]
[1729967166815,4.43125,2482.7,2482.6,1.30767856]
[1729967167427,0.40325,2482.7,2482.6,1.30767856]
[1729967168821,4.43125,2482.7,2482.6,1.30767856]
[1729967170223,0.40325,2482.7,2482.6,1.30767856]
[1729967173224,0.40325,2482.7,2482.1,3.7032]
[1729967173225,0.40333,2482.2,2482.1,3.2078]
[1729967173424,0.40333,2482.2,2482.1,1.30767856]
[1729967175631,0.40332,2482.3,2482.1,1.30767856]
[1729967175833,3.2078,2482.5,2482.0,1.30767856]
[1729967175834,0.4033,2482.4,2482.2,2.20739856]
[1729967176029,0.4033,2482.4,2482.3,1.30767856]
[1729967177841,3.61109,2482.5,2482.3,1.30767856]
[1729967178038,0.4658,2482.6,2482.4,1.30767856]
[1729967178225,0.86906,2482.6,2482.5,1.30767856]
[1729967179227,0.4658,2482.6,2482.5,1.30767856]
[1729967179626,0.856,2482.9,2482.5,1.80017856]
[1729967179836,0.40326,2482.7,2482.5,0.89577]
[1729967180031,0.40326,2482.6,2482.5,0.4925]
[1729967180230,0.4033,2482.4,2481.8,1.05585566]
[1729967180432,0.4033,2482.4,2482.2,0.89582]
[1729967181333,0.4033,2482.4,2482.3,1.30767856]
[1729967182836,0.4904,2482.5,2482.3,1.30767856]
[1729967183143,0.89368,2482.5,2482.4,1.30767856]
[1729967185443,0.4904,2482.5,2482.3,1.30767856]
[1729967185644,0.90169,2482.4,2482.3,1.30767856]
[1729967187143,0.40331,2482.3,2482.2,1.30767856]
[1729967188739,1.80607856,2482.4,2482.1,1.30767856]
[1729967188941,0.87073,2482.2,2482.1,1.30767856]
[1729967195448,0.40338,2481.9,2481.7,0.4034]
[1729967195749,0.40338,2481.9,2481.8,1.30767856]
[1729967196544,0.87248,2481.9,2481.8,1.30767856]
[1729967198050,0.87248,2481.9,2481.7,1.30767856]
[1729967198051,0.4691,2481.9,2481.7,1.30767856]
[1729967198251,0.4034,2481.8,2481.6,3.61122]
[1729967198956,0.40341,2481.8,2481.6,3.61122]
[1729967199251,0.40341,2481.8,2481.7,1.30767856]
[1729967200054,0.4691,2481.9,2481.7,1.30767856]
[1729967200251,0.87249,2481.9,2481.8,1.30767856]
[1729967210361,0.4691,2481.9,2481.8,1.30767856]
[1729967210569,0.4691,2481.9,2481.8,1.71106856]
[1729967212668,0.87248,2481.9,2481.8,1.30767856]
[1729967212962,0.4691,2481.9,2481.8,1.30767856]
[1729967213168,0.87248,2481.9,2481.8,1.30767856]
[1729967222467,0.4691,2481.9,2481.8,1.71106856]
[1729967222867,0.87248,2481.9,2481.8,1.30767856]
[1729967225777,0.4964,2482.0,2481.9,0.40338]
[1729967225778,0.89977,2482.0,2481.9,0.40338]
[1729967225975,3.2078,2482.1,2481.8,6.30687856]
[1729967226178,3.2078,2482.1,2482.0,1.71103856]
[1729967226385,3.2078,2482.1,2482.0,5.73983856]
[1729967228178,0.5137,2482.3,2482.2,0.40333]
[1729967228481,0.5137,2482.3,2482.2,1.71100856]
[1729967228679,0.5137,2482.3,2482.2,1.30767856]
[1729967228878,0.91701,2482.3,2482.2,1.30767856]
[1729967235583,0.5137,2482.3,2482.2,1.71100856]
[1729967235783,1.30767856,2482.7,2482.2,1.71100856]
[1729967235784,4.12,2483.2,2482.2,5.46259663]
[1729967236083,0.87373,2482.9,2482.8,1.30767856]
[1729967236484,0.87373,2482.9,2482.7,1.30767856]
[1729967236688,0.467,2482.8,2482.7,1.30767856]
[1729967237283,0.87373,2482.9,2482.8,0.40323]
[1729967237284,0.4705,2482.9,2482.8,0.40323]
[1729967237483,0.4705,2482.9,2482.8,1.30767856]
[1729967237886,3.2078,2483.1,2483.0,0.4032]
[1729967238086,0.40315,2483.3,2483.0,1.30767856]
[1729967238391,0.40315,2483.3,2483.2,1.30767856]
[1729967239091,4.91861856,2483.4,2483.2,1.30767856]
[1729967239287,3.61094,2483.4,2483.2,1.30767856]
[1729967240184,3.2078,2483.4,2483.2,1.71083856]
[1729967240486,3.2078,2483.4,2483.3,1.30767856]
[1729967240885,3.2078,2483.4,2483.3,1.71082856]
[1729967242379,1.4722,2483.5,2483.3,1.71082856]
[1729967242686,1.4722,2483.5,2483.4,1.30767856]
[1729967243989,1.87532,2483.5,2483.4,1.30767856]
[1729967244388,0.40317,2483.2,2483.1,1.30767856]
[1729967253789,0.40314,2483.4,2483.1,1.71084856]
[1729967253994,0.40314,2483.4,2483.3,1.30767856]
[1729967260394,5.98767856,2483.5,2483.2,1.30767856]
[1729967260595,0.40315,2483.3,2483.2,1.30767856]
[1729967260900,0.40315,2483.4,2483.2,1.30767856]
[1729967261706,6.39080856,2483.5,2483.3,1.30767856]
[1729967262009,4.68,2483.5,2483.3,1.30767856]
[1729967262204,4.68,2483.5,2483.1,0.5033]
[1729967262205,3.2078,2483.5,2483.4,1.71080856]
[1729967262802,0.40309,2483.7,2483.4,1.71080856]
[1729967262999,0.40309,2483.7,2483.6,1.30767856]
[1729967264396,1.30767856,2483.7,2482.9,3.6913]
[1729967264605,4.66,2483.8,2483.3,1.30767856]
[1729967264606,0.40312,2483.5,2483.3,1.30767856]
[1729967264793,1.4463,2483.4,2483.2,0.40316]
[1729967265000,1.4463,2483.4,2483.3,1.30767856]
[1729967268806,0.40316,2483.2,2483.1,0.4694]
[1729967269016,0.40316,2483.3,2483.1,1.30767856]
[1729967269312,0.40316,2483.3,2483.2,1.30767856]
[1729967269522,0.40316,2483.2,2483.1,1.30767856]
[1729967275011,1.30767856,2483.2,2482.9,1.30767856]
[1729967275212,0.9183,2483.1,2482.9,1.30767856]
[1729967275415,0.466,2483.0,2482.8,0.40322]
[1729967276108,0.466,2483.0,2482.7,0.4944]
[1729967276304,0.466,2483.0,2482.9,0.40321]
[1729967276613,0.466,2483.0,2482.9,1.71088856]
[1729967277115,0.466,2483.0,2482.9,2.18038856]
[1729967280218,0.466,2483.0,2482.9,1.77717856]
[1729967280416,0.466,2483.0,2482.9,2.18038856]
[1729967280819,0.8692,2483.0,2482.9,2.18038856]
[1729967281621,0.466,2483.0,2482.9,2.18038856]
[1729967282316,3.2078,2483.3,2483.1,0.40317]
[1729967282317,0.40316,2483.3,2483.1,0.40317]
[1729967282623,0.40316,2483.3,2483.2,1.30767856]
[1729967283118,1.73402,2483.5,2483.3,0.40313]
[1729967283320,3.7215,2483.6,2483.4,1.71080856]
[1729967283321,3.2078,2483.6,2483.4,1.71080856]
[1729967283524,3.2078,2483.6,2483.4,2.19910856]
[1729967283823,3.6109,2483.6,2483.4,2.19910856]
[1729967284315,3.6109,2483.6,2483.4,1.79597856]
[1729967284533,3.6109,2483.6,2483.4,2.19910856]
[1729967285524,3.6109,2483.6,2483.4,1.79597856]
[1729967286924,0.40312,2483.5,2483.4,1.79597856]
[1729967287126,3.61091,2483.6,2483.4,1.79597856]
[1729967287426,3.61091,2483.6,2483.4,2.19910856]
[1729967287612,3.2078,2483.5,2483.4,2.19910856]
[1729967287820,3.2078,2483.5,2483.4,1.79597856]
[1729967288324,3.61092,2483.5,2483.4,1.79597856]
[1729967289222,3.61092,2483.5,2483.4,1.30767856]
[1729967290428,3.2078,2483.5,2483.4,1.71080856]
[1729967290727,3.2078,2483.5,2483.4,1.77787856]
[1729967291326,3.2078,2483.5,2483.4,2.18100856]
[1729967291719,3.2078,2483.5,2483.4,1.30767856]
[1729967292033,3.61092,2483.5,2483.4,1.30767856]
[1729967292321,5.01797856,2483.5,2483.3,1.30767856]
[1729967292523,0.40313,2483.4,2483.3,1.30767856]
[1729967295620,3.7103,2483.5,2483.3,1.30767856]
[1729967295823,4.11342,2483.5,2483.4,1.30767856]
[1729967296624,3.61092,2483.5,2483.4,1.30767856]
[1729967297122,3.2078,2483.5,2483.3,1.30767856]
[1729967297329,0.40314,2483.4,2483.3,1.30767856]
[1729967297524,3.61093,2483.5,2483.3,1.30767856]
[1729967297729,3.61093,2483.5,2483.4,1.30767856]
[1729967299320,3.2078,2483.5,2483.4,1.30767856]
[1729967299926,3.61092,2483.5,2483.4,1.30767856]
[1729967300127,4.09012,2483.5,2483.4,1.30767856]
[1729967304732,7.7134,2483.5,2483.1,1.30767856]
[1729967304925,1.30767856,2483.4,2483.1,1.30767856]
[1729967305237,1.30767856,2483.4,2482.7,0.4702]
[1729967305432,0.4032,2483.1,2482.9,1.30767856]
[1729967305736,0.9638,2483.0,2482.7,0.4702]
[1729967305934,1.4508,2483.0,2482.9,0.40321]
[1729967307234,1.4508,2483.0,2482.9,1.71088856]
[1729967307536,1.4508,2483.0,2482.9,1.83696586]
[1729967308335,1.4508,2483.0,2482.9,1.71088856]
[1729967309229,1.4508,2483.0,2482.9,1.83697103]
[1729967309640,1.4508,2483.0,2482.9,1.71088856]
[1729967310140,1.854,2483.0,2482.9,1.8369708]
[1729967310635,1.854,2483.0,2482.9,1.71088856]
[1729967311444,1.854,2483.0,2482.9,1.30767856]
[1729967311830,1.854,2483.0,2482.9,1.71088856]
[1729967312931,1.854,2483.0,2482.9,1.83697076]
[1729967313438,1.854,2483.0,2482.9,1.71088856]
[1729967314438,1.4508,2483.0,2482.9,1.71088856]
[1729967314635,1.4508,2483.0,2482.9,1.83697181]
[1729967319737,1.854,2483.0,2482.9,1.83697181]
[1729967319942,1.4508,2483.0,2482.9,1.83697181]
[1729967320145,1.4508,2483.0,2482.9,1.71088856]
[1729967320536,1.4508,2483.0,2482.9,1.8369697]
[1729967320935,1.4508,2483.0,2482.9,0.12608114]
[1729967321237,1.4508,2483.0,2482.9,1.71088856]
[1729967321238,1.854,2483.0,2482.9,1.71088856]
[1729967324946,1.4508,2483.0,2482.9,1.83697092]
[1729967325140,1.854,2483.0,2482.9,1.83697092]
[1729967325543,1.4508,2483.0,2482.9,1.83697092]
[1729967325745,1.854,2483.0,2482.9,1.71088856]
[1729967325943,1.854,2483.0,2482.9,1.83697156]
[1729967326152,1.4508,2483.0,2482.9,1.83697156]
[1729967326849,1.4508,2483.0,2482.9,1.83696986]
[1729967327348,0.487,2483.0,2482.9,1.83696986]
[1729967327848,0.487,2483.0,2482.9,1.83696961]
[1729967329249,0.487,2483.0,2482.9,1.71088856]
[1729967329453,0.487,2483.0,2482.9,1.83696935]
[1729967330563,0.8902,2483.0,2482.9,1.71088856]
[1729967332068,0.487,2483.0,2482.9,1.71088856]
[1729967332552,0.8902,2483.0,2482.9,1.30767856]
[1729967333757,0.40321,2482.9,2482.8,1.71089856]
[1729967334062,1.42691,2482.9,2482.8,1.43376438]
[1729967334362,1.42691,2482.9,2482.8,1.83699438]
[1729967335050,1.42691,2482.9,2482.8,1.71090856]
[1729967335251,1.42691,2482.9,2482.8,1.83699587]
[1729967335455,1.42691,2482.9,2482.8,1.43376587]
[1729967335661,1.42691,2482.9,2482.8,1.55985318]
[1729967336062,1.42691,2482.9,2482.8,1.96308318]
[1729967337164,1.42691,2482.9,2482.8,1.43376587]
[1729967337361,1.42691,2482.9,2482.8,0.12608731]
[1729967337362,6.76258856,2482.9,2482.8,0.12608731]
[1729967337861,2.73458856,2482.9,2482.8,0.12608731]
[1729967339161,1.0237,2482.9,2482.8,1.43376587]
[1729967339355,1.0237,2482.9,2482.8,1.83699587]
[1729967342263,0.5152,2482.9,2482.8,1.83699587]
[1729967342570,0.5152,2482.9,2482.8,2.44108299]
[1729967343064,0.487,2483.0,2482.8,3.34553155]
[1729967343268,0.487,2483.0,2482.9,1.71088856]
[1729967345573,0.487,2483.0,2482.9,1.30767856]
[1729967346365,0.487,2483.0,2482.9,1.71088856]
[1729967346865,0.487,2483.0,2482.9,1.30767856]
[1729967347267,0.487,2483.0,2482.9,1.43376297]
[1729967347868,0.40318,2483.1,2482.9,1.83696297]
[1729967348166,0.87988,2483.1,2483.0,1.30767856]
[1729967348371,0.4767,2483.1,2483.0,1.71087856]
[1729967349267,0.4767,2483.1,2483.0,1.43375887]
[1729967349467,0.4767,2483.1,2483.0,1.30767856]
[1729967349669,0.4767,2483.1,2483.0,1.43375958]
[1729967350971,0.87988,2483.1,2483.0,1.43375958]
[1729967352270,0.87988,2483.1,2483.0,1.30767856]
[1729967353776,4.5039,2483.1,2482.7,0.5097]
[1729967353969,1.71088856,2482.9,2482.8,0.12608619]
[1729967354273,0.40321,2482.9,2482.8,1.43376475]
[1729967354475,0.40321,2483.0,2482.8,1.43376475]
[1729967354775,0.40321,2483.0,2482.9,1.43376763]
[1729967354980,0.40321,2483.0,2482.9,1.4337675]
[1729967356481,0.4032,2483.0,2482.9,1.4337675]
[1729967360473,0.4032,2483.0,2482.9,1.43376557]
[1729967361581,0.4767,2483.1,2482.9,1.43376557]
[1729967361780,0.4767,2483.1,2483.0,1.30767856]
[1729967361983,0.87988,2483.1,2483.0,1.30767856]
[1729967362177,0.4767,2483.1,2483.0,1.43376356]
[1729967362583,0.87988,2483.1,2483.0,1.43376356]
[1729967363277,0.87988,2483.1,2483.0,1.30767856]
[1729967365986,4.08768,2483.1,2483.0,1.30767856]
[1729967367686,0.87988,2483.1,2483.0,1.30767856]
[1729967368687,4.08768,2483.1,2483.0,1.30767856]
[1729967372993,0.87988,2483.1,2483.0,1.30767856]
[1729967373193,4.08768,2483.1,2483.0,1.30767856]
[1729967373890,0.87988,2483.1,2483.0,1.30767856]
[1729967374092,4.08768,2483.1,2483.0,1.30767856]
[1729967374894,0.87988,2483.1,2483.0,1.30767856]
[1729967375103,4.08768,2483.1,2483.0,1.30767856]
[1729967375292,4.08768,2483.1,2482.9,1.30767856]
[1729967376806,0.4032,2483.0,2482.9,1.30767856]
[1729967377098,0.4032,2483.0,2482.9,1.43376603]
[1729967378196,0.4032,2483.0,2482.9,1.43376548]
[1729967378596,3.6845,2483.1,2482.9,1.43376548]
[1729967378898,4.08769,2483.1,2483.0,0.12608659]
[1729967379597,4.08769,2483.1,2482.9,1.30767856]
[1729967379993,4.08769,2483.1,2483.0,0.12608805]
[1729967381992,4.08769,2483.1,2483.0,0.1260873]
[1729967382900,4.08769,2483.1,2482.9,1.30767856]
[1729967382901,0.4032,2483.0,2482.9,1.30767856]
[1729967383202,0.4032,2483.0,2482.9,1.4337661]
[1729967384596,4.0877,2483.1,2482.9,1.4337661]
[1729967384796,4.0877,2483.1,2483.0,0.12608754]
[1729967387198,0.8799,2483.1,2483.0,0.12608754]
[1729967387398,4.0877,2483.1,2483.0,0.12608754]
[1729967387993,0.4767,2483.1,2483.0,0.12608754]
[1729967388195,0.4767,2483.1,2483.0,1.4337661]
[1729967388402,0.87988,2483.1,2483.0,1.4337661]
[1729967389497,0.87988,2483.1,2483.0,1.30767856]
[1729967389697,0.87988,2483.1,2483.0,1.43375973]
[1729967392394,0.4767,2483.1,2483.0,1.43375973]
[1729967392604,0.87988,2483.1,2483.0,1.93725973]
[1729967393205,0.87988,2483.1,2483.0,1.81117856]
[1729967393406,0.87988,2483.1,2483.0,1.93726269]
[1729967393904,0.87988,2483.1,2483.0,1.43376269]
[1729967399208,0.4767,2483.1,2483.0,1.43376269]
[1729967401607,3.2078,2483.4,2483.0,5.46096269]
[1729967401812,0.9994,2483.5,2483.3,1.30767856]
[1729967402107,0.9994,2483.5,2483.4,1.94036269]
[1729967402409,0.9994,2483.5,2482.9,4.21583]
[1729967402410,0.40317,2483.2,2482.9,3.611]
[1729967402614,1.89139,2483.1,2483.0,1.43375579]
[1729967403001,1.89139,2483.1,2483.0,1.30767856]
[1729967405612,1.89139,2483.1,2483.0,1.43376177]
[1729967406507,1.89139,2483.1,2483.0,1.30767856]
[1729967407417,1.4882,2483.1,2483.0,1.43375877]
[1729967407915,1.4882,2483.1,2483.0,1.30767856]
[1729967408116,1.4882,2483.1,2483.0,1.43375858]
[1729967408511,0.9718,2483.1,2483.0,1.43375858]
[1729967412018,1.37498,2483.1,2483.0,1.43375858]
[1729967412220,1.37498,2483.1,2483.0,1.30767856]
[1729967420315,0.4032,2483.0,2482.9,1.30767856]
[1729967420515,0.40325,2482.7,2482.6,1.30767856]
[1729967420725,0.40325,2482.7,2482.6,1.43377138]
[1729967421131,1.38185,2482.7,2482.6,1.30767856]
[1729967421522,9.52207856,2482.7,2482.2,3.2078]
[1729967421725,0.40329,2482.4,2482.3,1.30767856]
[1729967424037,4.91876856,2482.4,2482.3,1.30767856]
[1729967424423,8.94756856,2482.4,2482.3,1.30767856]
[1729967425316,8.94756856,2482.4,2481.9,0.5122]
[1729967425317,0.40335,2482.1,2481.9,0.5122]
[1729967425519,8.54427856,2482.4,2481.9,0.5122]
[1729967425520,0.40334,2482.2,2482.0,1.30767856]
[1729967425720,0.4978,2482.1,2481.9,0.40337]
[1729967426717,0.4978,2482.1,2482.0,1.30767856]
[1729967426919,0.90114,2482.1,2482.0,1.30767856]
[1729967428931,0.4978,2482.1,2482.0,1.30767856]
[1729967430635,4.1655,2482.3,2482.0,1.30767856]
[1729967430838,4.1655,2482.3,2482.2,1.30767856]
[1729967431045,0.9577,2482.3,2482.2,1.30767856]
[1729967432042,0.5094,2482.4,2482.2,1.30767856]
[1729967432043,1.25629,2482.5,2482.2,1.71100856]
[1729967432238,1.72449,2482.5,2482.4,1.30767856]
[1729967432843,0.87149,2482.5,2482.4,1.30767856]
[1729967433442,0.4682,2482.5,2482.4,1.30767856]
[1729967434037,0.87148,2482.5,2482.4,1.30767856]
[1729967435140,0.4682,2482.5,2482.4,1.30767856]
[1729967436345,0.87148,2482.5,2482.4,1.30767856]
[1729967436744,0.4682,2482.5,2482.4,1.30767856]
[1729967437246,0.87148,2482.5,2482.4,1.30767856]
[1729967438345,0.4682,2482.5,2482.4,1.30767856]
[1729967438551,3.61106,2482.7,2482.4,5.73896856]
[1729967438747,3.61106,2482.7,2482.6,1.30767856]
[1729967439143,4.09576,2482.7,2482.6,1.30767856]
[1729967439451,3.2078,2482.7,2482.6,1.30767856]